{"text_format":"1","workbook":"xlsx","n_sheets":2,"sheets":["QUIZ","Données"],"not_rendered":{"charts":0,"images":0,"macros":1,"external_links":0,"defined_names":1,"comments":0,"pivot_tables":0},"unopened":[],"bounds":{"document_bytes":16777216,"sheet_cells":100000,"rows_first":2000,"rows_last":500,"rows_between":2000,"halvings":0,"cell_chars":16384,"cell_head_chars":4096},"cells_cut":0,"cells_raw":0,"read":"whole","date_system":"1900"}

{"sheet":"QUIZ","index":0,"n_rows":112,"n_cols":22,"rows_kept":112,"cut":false,"hidden":false,"merged":[[31,5,31,7],[31,9,31,10],[34,0,34,1],[33,9,33,10],[32,9,32,10],[31,2,31,3],[29,8,29,9],[24,4,25,4],[29,6,29,7],[26,5,28,5],[9,2,9,10],[14,2,14,10],[16,0,16,2],[24,5,25,9]]}
[]
[]
[]
[null,"Un peu de détente…"]
[]
[]
[null,null,null,null,null,null,null,null,null,null,null,null,null,null,null,null,null,null,"Test réponse"]
[]
[null,null,"Question :",null,null,null,null,null,null,null,null,null,null,null,null,null,null,null,"Réponse E","Bonne réponse","Trouve","Test erreur"]
[null,0,{"$f":"IF(B10=0,\"\",VLOOKUP(B10,Questions_Q,2))","v":""},null,null,null,null,null,null,null,null,null,null,null,null,null,null,0,{"$f":"F25","v":0},{"$f":"VLOOKUP(B10,Q12:R105,2)","v":{"$error":"#N/A"}},{"$f":"SEARCH(T10,S10:S10)","v":{"$error":"#N/A"}},{"$f":"IF(ISERR(U10)=TRUE,0,1)","v":1}]
[null,null,null,null,null,null,null,null,null,null,null,null,null,null,null,null,null,null,1]
[null,null,null,null,null,null,null,null,null,null,null,null,null,null,null,null,1,{"$f":"Données!E6","v":32}]
[null,null,null,null,null,null,null,null,null,null,null,null,null,null,null,null,2,{"$f":"Données!E7","v":"if"}]
[null,null,"Réponse :",null,null,null,null,null,null,null,null,null,null,null,null,null,3,{"$f":"Données!E8","v":"Kipling"}]
[null,null,{"$f":"VLOOKUP(B10,Questions_Q,3)","v":{"$error":"#N/A"}},null,null,null,null,null,null,null,null,null,null,null,"Compteurs",null,4,{"$f":"Données!E9","v":"non"}]
[null,null,null,null,null,null,null,null,null,null,null,null,null,null,null,null,5,{"$f":"Données!E10","v":"oxygène"}]
[null,null,null,null,null,null,null,null,null,null,{"$f":"IF(O24=(D34-C34+1),\"Fin de série\",\"\")","v":""},null,null,null,"Nb questions",null,6,{"$f":"Données!E11","v":"nobel"}]
[null,null,null,null,null,null,null,null,null,null,null,null,null,null,{"$f":"100-COUNTIF(R12:R111,0)","v":60},null,7,{"$f":"Données!E12","v":"peste"}]
[null,null,null,null,null,null,null,null,null,null,null,null,null,null,null,null,8,{"$f":"Données!E13","v":"vénus"}]
[null,null,null,null,null,null,null,null,null,null,null,null,null,null,"Nb tirage",null,9,{"$f":"Données!E14","v":"molière"}]
[null,null,null,null,null,null,null,null,null,null,null,null,null,null,null,null,10,{"$f":"Données!E15","v":"Louis-Philippe"}]
[null,null,null,null,null,null,null,null,null,null,null,null,null,null,null,null,11,{"$f":"Données!E16","v":2000}]
[null,null,null,null,null,null,null,null,null,null,null,null,null,null,"Nb justes",null,12,{"$f":"Données!E17","v":"ornithorynque"}]
[null,null,"Ctrl s = voir solution",null,null,"Réponse écrite ici :",null,null,null,null,null,null,null,null,{"$f":"SUM(S12:S111)","v":0},null,13,{"$f":"Données!E18","v":"quaternaire"}]
[null,null,"Ctrl y = cacher la solution",null,null,null,null,null,null,null,null,null,null,null,null,null,14,{"$f":"Données!E19","v":596}]
[null,null,"Ctrl q = tirage question",null,null,null,null,null,null,null,"Enter",null,null,null,"Nb réponse",null,15,{"$f":"Données!E20","v":"amour délice orgue"}]
[null,null,null,null,null,"Enter",null,null,null,null,null,null,null,null,null,null,16,{"$f":"Données!E21","v":"mercure"}]
[null,null,null,null,null,null,null,null,null,null,null,null,null,null,null,null,17,{"$f":"Données!E22","v":"suez"}]
[null,null,null,null,null,null,null,null,null,null,null,null,null,null,"E/0",null,18,{"$f":"Données!E23","v":"joe"}]
[null,null,null,null,null,null,null,null,null,null,{"$f":"IF(O24=(D34-C34+1),\"Fin de série\",\"\")","v":""},null,null,null,2,null,19,{"$f":"Données!E24","v":"atlas"}]
[null,null,null,null,null,null,null,null,null,null,null,null,null,null,null,null,20,{"$f":"Données!E25","v":"ubiquité"}]
[null,null,"Tirage au sort ",null,null,{"$f":"IF(F25=\"\",\"\",IF(O33=0,IF(V10=1,\"Bravo\",\"Non désolé !\"),\"Solution demandée !!!\"))","v":""},null,null,null,"Réponses données :",null,{"$f":"IF(O36=FALSE,O27-1,O27)","v":-1},null,null,"Sol",null,21,{"$f":"Données!E26","v":"gard"}]
[null,null,"minimum","maximum",null,null,null,null,null,"Réponses justes :",null,{"$f":"O24","v":0},null,null,0,null,22,{"$f":"Données!E27","v":"pelote"}]
[null,null,1,60,null,null,null,null,null,"Questions posées :",null,{"$f":"O21","v":0},null,null,null,null,23,{"$f":"Données!E28","v":"6 juin 1944"}]
["Zoom écran",null,null,null,null,null,null,null,null,null,null,null,null,null,"Valid",null,24,{"$f":"Données!E29","v":"croisades"}]
[95,null,null,null,null,null,null,null,null,null,null,null,null,null,false,null,25,{"$f":"Données!E30","v":"6,9"}]
[null,null,null,null,null,null,null,null,null,null,null,null,null,null,null,null,26,{"$f":"Données!E31","v":"solstice"}]
[null,null,null,null,null,null,null,null,null,null,null,null,null,null,null,null,27,{"$f":"Données!E32","v":"vinci"}]
[null,null,null,null,null,null,null,null,null,null,null,null,null,null,null,null,28,{"$f":"Données!E33","v":"parthénon"}]
[null,null,null,null,null,null,null,null,null,null,null,null,null,null,null,null,29,{"$f":"Données!E34","v":"lacrymale"}]
[null,null,null,null,null,null,null,null,null,null,null,null,null,null,null,null,30,{"$f":"Données!E35","v":"tuberculose"}]
[null,null,null,null,null,null,null,null,null,null,null,null,null,null,null,null,31,{"$f":"Données!E36","v":"ventricule"}]
[null,null,null,null,null,null,null,null,null,null,null,null,null,null,null,null,32,{"$f":"Données!E37","v":"denis"}]
[null,null,null,null,null,null,null,null,null,null,null,null,null,null,null,null,33,{"$f":"Données!E38","v":"halley"}]
[null,null,null,null,null,null,null,null,null,null,null,null,null,null,null,null,34,{"$f":"Données!E39","v":"chauve-souris"}]
[null,null,null,null,null,null,null,null,null,null,null,null,null,null,null,null,35,{"$f":"Données!E40","v":1981}]
[null,null,null,null,null,null,null,null,null,null,null,null,null,null,null,null,36,{"$f":"Données!E41","v":"océanie"}]
[null,null,null,null,null,null,null,null,null,null,null,null,null,null,null,null,37,{"$f":"Données!E42","v":1990}]
[null,null,null,null,null,null,null,null,null,null,null,null,null,null,null,null,38,{"$f":"Données!E43","v":"numismate"}]
[null,null,null,null,null,null,null,null,null,null,null,null,null,null,null,null,39,{"$f":"Données!E44","v":"plante"}]
[null,null,null,null,null,null,null,null,null,null,null,null,null,null,null,null,40,{"$f":"Données!E45","v":"pince"}]
[null,null,null,null,null,null,null,null,null,null,null,null,null,null,null,null,41,{"$f":"Données!E46","v":"indien"}]
[null,null,null,null,null,null,null,null,null,null,null,null,null,null,null,null,42,{"$f":"Données!E47","v":12}]
[null,null,null,null,null,null,null,null,null,null,null,null,null,null,null,null,43,{"$f":"Données!E48","v":"atomium"}]
[null,null,null,null,null,null,null,null,null,null,null,null,null,null,null,null,44,{"$f":"Données!E49","v":5}]
[null,null,null,null,null,null,null,null,null,null,null,null,null,null,null,null,45,{"$f":"Données!E50","v":"histologie"}]
[null,null,null,null,null,null,null,null,null,null,null,null,null,null,null,null,46,{"$f":"Données!E51","v":"épouse"}]
[null,null,null,null,null,null,null,null,null,null,null,null,null,null,null,null,47,{"$f":"Données!E52","v":"jaune"}]
[null,null,null,null,null,null,null,null,null,null,null,null,null,null,null,null,48,{"$f":"Données!E53","v":"eau"}]
[null,null,null,null,null,null,null,null,null,null,null,null,null,null,null,null,49,{"$f":"Données!E54","v":"majorque"}]
[null,null,null,null,null,null,null,null,null,null,null,null,null,null,null,null,50,{"$f":"Données!E55","v":"neige"}]
[null,null,null,null,null,null,null,null,null,null,null,null,null,null,null,null,51,{"$f":"Données!E56","v":"masa"}]
[null,null,null,null,null,null,null,null,null,null,null,null,null,null,null,null,52,{"$f":"Données!E57","v":"accuse"}]
[null,null,null,null,null,null,null,null,null,null,null,null,null,null,null,null,53,{"$f":"Données!E58","v":"alchimie"}]
[null,null,null,null,null,null,null,null,null,null,null,null,null,null,null,null,54,{"$f":"Données!E59","v":"espadon"}]
[null,null,null,null,null,null,null,null,null,null,null,null,null,null,null,null,55,{"$f":"Données!E60","v":"rolling ston"}]
[null,null,null,null,null,null,null,null,null,null,null,null,null,null,null,null,56,{"$f":"Données!E61","v":"bulle"}]
[null,null,null,null,null,null,null,null,null,null,null,null,null,null,null,null,57,{"$f":"Données!E62","v":"moujik"}]
[null,null,null,null,null,null,null,null,null,null,null,null,null,null,null,null,58,{"$f":"Données!E63","v":"minaret"}]
[null,null,null,null,null,null,null,null,null,null,null,null,null,null,null,null,59,{"$f":"Données!E64","v":"abidjan"}]
[null,null,null,null,null,null,null,null,null,null,null,null,null,null,null,null,60,{"$f":"Données!E65","v":"entreprise"}]
[null,null,null,null,null,null,null,null,null,null,null,null,null,null,null,null,61,{"$f":"Données!E66","v":0}]
[null,null,null,null,null,null,null,null,null,null,null,null,null,null,null,null,62,{"$f":"Données!E67","v":0}]
[null,null,null,null,null,null,null,null,null,null,null,null,null,null,null,null,63,{"$f":"Données!E68","v":0}]
[null,null,null,null,null,null,null,null,null,null,null,null,null,null,null,null,64,{"$f":"Données!E69","v":0}]
[null,null,null,null,null,null,null,null,null,null,null,null,null,null,null,null,65,{"$f":"Données!E70","v":0}]
[null,null,null,null,null,null,null,null,null,null,null,null,null,null,null,null,66,{"$f":"Données!E71","v":0}]
[null,null,null,null,null,null,null,null,null,null,null,null,null,null,null,null,67,{"$f":"Données!E72","v":0}]
[null,null,null,null,null,null,null,null,null,null,null,null,null,null,null,null,68,{"$f":"Données!E73","v":0}]
[null,null,null,null,null,null,null,null,null,null,null,null,null,null,null,null,69,{"$f":"Données!E74","v":0}]
[null,null,null,null,null,null,null,null,null,null,null,null,null,null,null,null,70,{"$f":"Données!E75","v":0}]
[null,null,null,null,null,null,null,null,null,null,null,null,null,null,null,null,71,{"$f":"Données!E76","v":0}]
[null,null,null,null,null,null,null,null,null,null,null,null,null,null,null,null,72,{"$f":"Données!E77","v":0}]
[null,null,null,null,null,null,null,null,null,null,null,null,null,null,null,null,73,{"$f":"Données!E78","v":0}]
[null,null,null,null,null,null,null,null,null,null,null,null,null,null,null,null,74,{"$f":"Données!E79","v":0}]
[null,null,null,null,null,null,null,null,null,null,null,null,null,null,null,null,75,{"$f":"Données!E80","v":0}]
[null,null,null,null,null,null,null,null,null,null,null,null,null,null,null,null,76,{"$f":"Données!E81","v":0}]
[null,null,null,null,null,null,null,null,null,null,null,null,null,null,null,null,77,{"$f":"Données!E82","v":0}]
[null,null,null,null,null,null,null,null,null,null,null,null,null,null,null,null,78,{"$f":"Données!E83","v":0}]
[null,null,null,null,null,null,null,null,null,null,null,null,null,null,null,null,79,{"$f":"Données!E84","v":0}]
[null,null,null,null,null,null,null,null,null,null,null,null,null,null,null,null,80,{"$f":"Données!E85","v":0}]
[null,null,null,null,null,null,null,null,null,null,null,null,null,null,null,null,81,{"$f":"Données!E86","v":0}]
[null,null,null,null,null,null,null,null,null,null,null,null,null,null,null,null,82,{"$f":"Données!E87","v":0}]
[null,null,null,null,null,null,null,null,null,null,null,null,null,null,null,null,83,{"$f":"Données!E88","v":0}]
[null,null,null,null,null,null,null,null,null,null,null,null,null,null,null,null,84,{"$f":"Données!E89","v":0}]
[null,null,null,null,null,null,null,null,null,null,null,null,null,null,null,null,85,{"$f":"Données!E90","v":0}]
[null,null,null,null,null,null,null,null,null,null,null,null,null,null,null,null,86,{"$f":"Données!E91","v":0}]
[null,null,null,null,null,null,null,null,null,null,null,null,null,null,null,null,87,{"$f":"Données!E92","v":0}]
[null,null,null,null,null,null,null,null,null,null,null,null,null,null,null,null,88,{"$f":"Données!E93","v":0}]
[null,null,null,null,null,null,null,null,null,null,null,null,null,null,null,null,89,{"$f":"Données!E94","v":0}]
[null,null,null,null,null,null,null,null,null,null,null,null,null,null,null,null,90,{"$f":"Données!E95","v":0}]
[null,null,null,null,null,null,null,null,null,null,null,null,null,null,null,null,91,{"$f":"Données!E96","v":0}]
[null,null,null,null,null,null,null,null,null,null,null,null,null,null,null,null,92,{"$f":"Données!E97","v":0}]
[null,null,null,null,null,null,null,null,null,null,null,null,null,null,null,null,93,{"$f":"Données!E98","v":0}]
[null,null,null,null,null,null,null,null,null,null,null,null,null,null,null,null,94,{"$f":"Données!E99","v":0}]
[null,null,null,null,null,null,null,null,null,null,null,null,null,null,null,null,95,{"$f":"Données!E100","v":0}]
[null,null,null,null,null,null,null,null,null,null,null,null,null,null,null,null,96,{"$f":"Données!E101","v":0}]
[null,null,null,null,null,null,null,null,null,null,null,null,null,null,null,null,97,{"$f":"Données!E102","v":0}]
[null,null,null,null,null,null,null,null,null,null,null,null,null,null,null,null,98,{"$f":"Données!E103","v":0}]
[null,null,null,null,null,null,null,null,null,null,null,null,null,null,null,null,99,{"$f":"Données!E104","v":0}]
[null,null,null,null,null,null,null,null,null,null,null,null,null,null,null,null,100,{"$f":"Données!E105","v":0}]
[null,null,null,null,null,null,null,null,null,null,null,null,null,null,null,null,101]

{"sheet":"Données","index":1,"n_rows":65,"n_cols":19,"rows_kept":65,"cut":false,"hidden":true,"merged":[[4,9,4,11],[5,9,5,11]]}
[]
[]
[]
[null,"no","Questions","Réponses","Réponses pour test"]
[null,0,"Nouveau jeu",null,null,null,null,null,null,"Feuille de données"]
[null,1,"Combien les adultes ont-ils de dents ?",32,32,null,null,null,null,"Ne pas supprimer !"]
[null,2,"Comment s'appelle le château situé sur un îlot en face de Marseille ?","Château d'If","if"]
[null,3,"Quel est l'auteur du livre de la jungle ?","Rudyard Kipling","Kipling"]
[null,4,"Un homme a-t-il le droit d'épouser la sœur de sa veuve ?","Non, il est mort !","non"]
[null,5,"Quel gaz est transporté par le sang","L'oxygène","oxygène"]
[null,6,"Qui inventa la dynamite","Alfred Nobel","nobel"]
[null,7,"De quelle maladie le roi Louis IX mourut-il en 1270 ?","La peste","peste"]
[null,8,"Quel est l'astre connu sous le nom de l'Etoile du berger ?","Vénus","vénus"]
[null,9,"Qui était Jean Baptiste Poquelin ?","Molière","molière"]
[null,10,"Qui fut le dernier roi français ?","Louis-Philippe 1er","Louis-Philippe",null,null,null,null,null,null,null,null,null,null,null,null,null,0]
[null,11,"Résultat de la division de 1000 par 1/2",2000,2000,null,null,null,null,null,null,null,null,null,null,null,null,null,0]
[null,12,"Quel mammifère pond des œufs ?","L'ornithorynque","ornithorynque"]
[null,13,"A quelle ère l'homme est-il apparu ?","Quaternaire (il y a 2,5 millions d'années)","quaternaire"]
[null,14,"Quelle est l'altitude du Kilimandjaro","5963 mètres",596]
[null,15,"Les 3 mots qui sont masculins au singulier et féminins au pluriel ?","Amour, délice et orgue","amour délice orgue"]
[null,16,"Quelle est la planète la plus proche du Soleil ?","Mercure","mercure"]
[null,17,"Quel ouvrage doit-on à Ferdinand de Lesseps ?","Canal de Suez","suez"]
[null,18,"Quel est le prénom du plus petit des Dalton ?","Joe","joe"]
[null,19,"Le dieu grec condamné à soutenir sur ses épaules la voûte céleste ?","Atlas","atlas"]
[null,20,"Comment s'appelle le don d'être partout en même temps ?","Don d'ubiquité","ubiquité"]
[null,21,"Comment s'appelle l'aqueduc romain qui alimentait en eau Nîmes ?","Le pont du Gard","gard"]
[null,22,"A quel sport joue-t-on traditionnellement à Bayonne ?","La pelote basque","pelote"]
[null,23,"A quelle date les Alliés débarquèrent-ils en Normandie","6 juin 1944","6 juin 1944"]
[null,24,"Nom des guerres menées par les chrétiens pour prendre Jérusalem ?","Les croisades (XI et XIIe siècle)","croisades"]
[null,25,"Combien pèse un sac de 7,750 kg après lui avoir enlevé 8 hg et 5 dag ?","6,9 kg","6,9"]
[null,26,"Comment s'appelle le jour le plus long de l'année ?","Solstice d'été","solstice"]
[null,27,"Où est né Léonard de Vinci en 1452 ?","A Vinci près de Florence !","vinci"]
[null,28,"Comment s'appelle le tempe grec construit sur l'Acropole (Athènes) ?","Le Parthénon","parthénon"]
[null,29,"Comment s'appellent les glandes qui sécrètent les larmes ?","Glandes lacrymales","lacrymale"]
[null,30,"Contre quelle maladie protège le vaccin \"bacille Calmette-Guérin\" ? ","B.C.G. contre la tuberculose","tuberculose"]
[null,31,"Comment s'appellent les parties du cœur qui envoient le sang dans les artères ?","Les ventricules","ventricule"]
[null,32,"Quel est le chef-lieu de l'Île de la Réunion ?","Saint-Denis","denis"]
[null,33,"Quelle comète revient dans le voisinage de la Lune tous les 76 ans ?","Halley","halley"]
[null,34,"Quel est le seul mammifère volant ?","La chauve-souris","chauve-souris"]
[null,35,"Quelle est l'année donnée ainsi en chiffres romains : MCMLXXXI",1981,1981]
[null,36,"A quel continent appartient la Nouvelle-Calédonie ?","L'Océanie","océanie"]
[null,37,"En quelle année furent unifiées les deux Allemagne ?",1990,1990]
[null,38,"Comment s'appelle un collectionneur de médailles","Monnaies et médailles - un numismate","numismate"]
[null,39,"Qu'étudie un botaniste ?","Les plantes","plante"]
[null,40,"Dans quel Tintin apparaît pour la première fois le capitaine Haddock ?","Le Crabe aux pinces d'Or","pince"]
[null,41,"Dans quel océan se trouve l'île de Madagascar ?","Océan Indien","indien"]
[null,42,"En quelle année coula le Titanic ? (1906 - 1912 - 1922 - 1933)",1912,12]
[null,43,"Comment s'appelle le monument de Bruxelles hérité d'une exposition universelle ?","l'Atomium","atomium"]
[null,44,"Quelle est la longueur de la Grande Muraille de Chine ? (En milliers de km)","5000 km",5]
[null,45,"Comment s'appelle la science qui étudie les tissus vivants ?","l'histologie","histologie"]
[null,46,"A la mémoire de qui, l'empereur Chah Djahan construit-il le Tadj Mahall ?","Son épouse","épouse"]
[null,47,"De quelle couleur est la pierre \"topaze\" ?","Jaune","jaune"]
[null,48,"Qu'appelle-t-on la houille blanche ?","L'énergie des chutes d'eau","eau"]
[null,49,"Quel est le nom de la plus grande des îles Baléares ?","Majorque","majorque"]
[null,50,"Qu'est-ce que l'or blanc ?","la neige","neige"]
[null,51,"Quel peuple africain se nourrit principalement de sang et de lait ?","Les masaï","masa"]
[null,52,"Quelle lettre de Zola prenait position dans l\"Affaire Dreyfus\" ?","J'accuse","accuse"]
[null,53,"Comment appelle-t-on le secret de la transformation de métaux en or ?","L'alchimie","alchimie"]
[null,54,"Quel est le vrai nom du poisson-épée","L'espadon","espadon"]
[null,55,"Comment s'appelait le groupe de Mick Jagger ?","Les Rolling Stones","rolling ston"]
[null,56,"Qu'est-ce qu'un phylactère ","Une bulle dans une BD","bulle"]
[null,57,"Comment appelle-t-on un paysan russe","Un moujik","moujik"]
[null,58,"Comme s'appelle la tour d'une mosquée ?","Un minaret","minaret"]
[null,59,"Quel était l'ancien nom de Yamoussoukro (Côte-d'Ivoire) ?","Abidjan","abidjan"]
[null,60,"Quel est le nom du vaisseau dans Star Trek ?","L'Entreprise","entreprise"]